bitfinex-derivatives/quotes_SOLF0:USTF0_20250731
["timestamp","ask_amount","ask_price","bid_price","bid_amount"]
[1753922724870,5.5766,179.32,179.29,3.25]
[1753922725074,0.82,179.38,179.29,3.25]
[1753922725267,0.82,179.38,179.31,3.25]
[1753922725767,5.5758,179.35,179.31,3.25]
[1753922726173,5.5758,179.35,179.31,8.8267]
[1753922726378,0.82,179.38,179.31,3.25]
[1753922726873,0.82,179.38,179.32,3.25]
[1753922727577,0.82,179.42,179.19,3.25]
[1753922727877,0.82,179.4,179.19,3.25]
[1753922728075,0.82,179.33,179.27,3.25]
[1753922728672,5.5774,179.29,179.27,3.25]
[1753922729784,5.5777,179.28,179.27,3.12]
[1753922729979,16.73,179.41,179.25,3.12]
[1753922730174,16.73,179.39,179.25,3.12]
[1753922730481,5.5783,179.26,179.25,3.12]
[1753922730682,0.82,179.36,179.22,3.12]
[1753922730984,0.82,179.23,179.16,5.5814]
[1753922731380,5.5802,179.21,179.17,3.12]
[1753922731781,0.82,179.23,179.17,3.12]
[1753922731971,5.5804,179.2,179.17,3.12]
[1753922732383,0.82,179.23,179.17,3.12]
[1753922732682,5.5802,179.21,179.17,3.12]
[1753922733070,5.5793,179.23,179.19,3.12]
[1753922733276,0.82,179.26,179.19,3.12]
[1753922733779,5.5794,179.23,179.19,3.12]
[1753922733983,0.82,179.28,179.2,3.12]
[1753922734182,0.82,179.3,179.2,3.12]
[1753922734386,0.82,179.3,179.23,3.12]
[1753922734885,5.5783,179.27,179.23,8.6993]
[1753922735086,5.5783,179.27,179.24,3.12]
[1753922735283,0.82,179.3,179.24,3.12]
[1753922735976,5.5774,179.29,179.25,5.5784]
[1753922736176,5.5774,179.29,179.26,3.12]
[1753922736378,0.82,179.32,179.26,3.12]
[1753922736785,4.19834194,179.31,179.26,3.12]
[1753922736985,5.5776,179.29,179.26,3.12]
[1753922737183,0.82,179.31,179.26,3.12]
[1753922737386,4.19657852,179.3,179.26,3.12]
[1753922737688,0.82,179.31,179.26,3.12]
[1753922739289,5.5775,179.29,179.26,3.12]
[1753922741284,0.82,179.35,179.25,3.12]
[1753922741683,0.82,179.35,179.28,5.5777]
[1753922741884,0.82,179.35,179.29,3.12]
[1753922742490,0.82,179.37,179.29,3.12]
[1753922743290,0.82,179.37,179.31,3.12]
[1753922744387,0.82,179.35,179.21,3.12]
[1753922744888,5.5771,179.31,179.27,5.578]
[1753922745283,5.5771,179.31,179.28,3.12]
[1753922746090,0.82,179.34,179.28,3.12]
[1753922746890,0.82,179.34,179.21,3.12]
[1753922747081,5.5775,179.29,179.24,5.5787]
[1753922747285,5.5775,179.29,179.25,3.12]
[1753922747684,5.5775,179.29,179.2,195.58198733]
[1753922747887,5.5777,179.28,179.21,3.12]
[1753922748291,5.5777,179.28,179.23,5.579]
[1753922748482,5.5777,179.28,179.24,3.12]
[1753922748685,5.578,179.27,179.21,3.12]
[1753922748988,0.82,179.29,179.23,3.12]
[1753922749494,21.41385753,179.38,179.23,3.12]
[1753922749495,6.398,179.28,179.23,3.12]
[1753922749693,0.82,179.28,179.23,3.12]
[1753922749882,0.82,179.37,179.23,3.12]
[1753922750086,0.82,179.35,179.23,3.12]
[1753922750290,5.5774,179.3,179.24,5.5789]
[1753922750491,6.3974,179.3,179.25,3.12]
[1753922750793,16.73,179.36,179.26,3.12]
[1753922750794,5.5769,179.31,179.26,3.12]
[1753922751092,0.82,179.34,179.26,3.12]
[1753922751491,0.82,179.38,179.28,3.12]
[1753922751690,0.82,179.36,179.28,3.12]
[1753922751994,5.5765,179.32,179.28,3.12]
[1753922752597,5.5762,179.33,179.28,3.12]
[1753922752893,0.82,179.34,179.28,3.12]
[1753922753589,5.5769,179.31,179.29,3.12]
[1753922753789,6.3969,179.31,179.27,3.12]
[1753922753991,16.73,179.39,179.28,3.12]
[1753922753992,0.82,179.3,179.28,3.12]
[1753922754187,0.82,179.32,179.21,3.12]
[1753922754387,0.82,179.38,179.21,3.12]
[1753922754587,5.5764,179.33,179.27,3.12]
[1753922754791,6.3964,179.33,179.27,3.12]
[1753922755188,5.5764,179.33,179.27,3.12]
[1753922755384,6.3964,179.33,179.28,3.12]
[1753922755791,6.3965,179.32,179.21,3.12]
[1753922755985,6.3965,179.32,179.26,5.5781]
[1753922756195,6.3965,179.32,179.27,3.12]
[1753922756390,6.3968,179.31,179.27,3.12]
[1753922756589,0.82,179.31,179.27,3.12]
[1753922756791,0.82,179.38,179.28,3.12]
[1753922756992,0.82,179.36,179.28,3.12]
[1753922757187,0.82,179.38,179.32,3.12]
[1753922757586,5.5752,179.37,179.32,3.12]
[1753922757785,128.68385753,179.44,179.32,3.12]
[1753922757993,22.23385753,179.42,179.32,3.12]
[1753922758297,0.82,179.4,179.32,3.12]
[1753922758494,0.82,179.38,179.32,3.12]
[1753922758693,0.82,179.36,179.21,3.3]
[1753922758894,4.21132558,179.35,179.21,3.3]
[1753922759092,5.5774,179.29,179.25,5.5786]
[1753922759286,21.41385753,179.39,179.27,3.3]
[1753922759590,0.82,179.37,179.27,3.3]
[1753922759791,0.82,179.35,179.27,3.3]
[1753922760995,5.5776,179.29,179.27,3.3]
[1753922761198,5.5776,179.29,179.28,3.3]
[1753922761393,0.82,179.31,179.25,3.3]
[1753922761587,5.5779,179.28,179.23,5.5792]
[1753922761792,5.5779,179.28,179.27,3.3]
[1753922761989,5.5779,179.28,179.24,3.3]
[1753922762189,5.5781,179.27,179.24,3.3]
[1753922762392,0.82,179.31,179.24,3.3]
[1753922762792,16.73,179.35,179.24,3.3]
[1753922762793,5.5787,179.25,179.24,3.3]
[1753922763399,0.82,179.28,179.13,3.3]
[1753922763593,5.5793,179.23,179.19,5.5805]
[1753922763799,5.5793,179.23,179.2,3.3]
[1753922764100,5.5793,179.23,179.18,5.5808]
[1753922764288,5.5793,179.23,179.19,3.3]
[1753922764695,5.5798,179.22,179.18,3.3]
[1753922764890,0.82,179.25,179.18,3.3]
[1753922765096,0.82,179.3,179.18,3.3]
[1753922765296,0.82,179.3,179.2,5.5801]
[1753922765497,0.82,179.3,179.21,3.3]
[1753922766295,0.82,179.28,179.21,3.3]
[1753922767006,0.82,179.28,179.11,3.3]
[1753922767495,5.5789,179.25,179.2,5.58]
[1753922767700,0.82,179.28,179.11,3.3]
[1753922768301,0.82,179.26,179.11,3.3]
[1753922768900,0.82,179.26,179.19,3.3]
[1753922769403,5.579,179.24,179.2,3.3]
[1753922769603,0.82,179.26,179.2,3.3]
[1753922769904,0.82,179.26,179.21,3.3]
[1753922770299,5.5793,179.23,179.18,5.5808]
[1753922770504,0.82,179.32,179.2,3.3]
[1753922770706,20.95842196,179.31,179.2,3.3]
[1753922770907,5.579,179.24,179.2,3.3]
[1753922771407,0.82,179.3,179.2,3.3]
[1753922771599,5.5791,179.24,179.2,3.3]
[1753922771799,0.82,179.32,179.2,3.3]
[1753922772005,0.82,179.3,179.2,3.3]
[1753922772208,5.5793,179.23,179.2,3.3]
[1753922773002,5.5796,179.22,179.19,3.3]
[1753922773807,5.5796,179.22,179.07,11.1685]
[1753922774007,16.73,179.3,179.08,3.3]
[1753922774008,5.5799,179.21,179.08,3.3]
[1753922774402,5.5797,179.22,179.17,3.3]
[1753922774808,0.83,179.23,179.17,8.8809]
[1753922775009,21.41349586,179.3,179.05,12.57744581]
[1753922775204,0.83,179.27,179.18,3.3]
[1753922776206,5.5791,179.24,179.19,5.5802]
[1753922776411,5.5791,179.24,179.2,3.3]
[1753922777206,5.5791,179.24,179.19,5.5802]
[1753922777411,5.5791,179.24,179.2,3.3]
[1753922777706,5.5791,179.24,179.2,8.8802]
[1753922777912,5.5791,179.24,179.21,3.3]
[1753922778110,0.83,179.26,179.2,3.3]
[1753922778309,0.83,179.28,179.2,3.3]
[1753922779714,5.5787,179.25,179.21,5.5798]
[1753922780014,5.5787,179.25,179.22,3.3]
[1753922780611,5.5787,179.25,179.2,5.5802]
[1753922780814,5.5787,179.25,179.21,3.3]
[1753922781013,6.4084,179.26,179.21,3.3]
[1753922781210,5.5784,179.26,179.22,3.3]
[1753922781517,5.5788,179.25,179.21,5.5797]
[1753922781717,6.4088,179.25,179.23,3.3]
[1753922782022,6.4088,179.25,179.24,3.3]
[1753922782221,5.5788,179.25,179.21,5.5797]
[1753922782413,16.73,179.34,179.21,3.3]
[1753922782617,0.83,179.31,179.21,3.3]
[1753922782807,0.83,179.29,179.21,3.3]
[1753922783014,5.5787,179.25,179.21,3.3]
[1753922783218,0.83,179.27,179.2,5.58]
[1753922783414,0.83,179.27,179.21,3.3]
[1753922783715,5.5789,179.25,179.21,3.3]
[1753922784118,0.83,179.25,179.21,3.3]
[1753922784419,16.73,179.33,179.06,11.1691]
[1753922784420,5.5796,179.23,179.22,3.3]
[1753922784719,0.83,179.24,179.08,3.3]
[1753922784922,5.58,179.21,179.08,3.3]
[1753922785109,0.83,179.22,179.08,3.3]
[1753922785517,5.5805,179.2,179.08,3.3]
[1753922785912,0.83,179.26,179.15,3.3]
[1753922788213,5.5802,179.21,179.17,3.12]
[1753922788412,129.29602157,179.27,179.18,3.12]
[1753922788625,0.83,179.26,179.19,5.5805]
[1753922788824,0.83,179.26,179.2,3.12]
[1753922789127,5.5792,179.24,179.2,3.12]
[1753922789328,6.4092,179.24,179.2,3.12]
[1753922789533,0.83,179.26,179.2,3.12]
[1753922790224,5.5787,179.25,179.2,3.12]
[1753922790424,129.29602157,179.27,179.2,3.12]
[1753922791216,0.83,179.35,179.27,5.5779]
[1753922791418,0.83,179.35,179.28,3.12]
[1753922792524,5.5771,179.3,179.28,3.12]
[1753922792824,0.83,179.34,179.28,3.12]
[1753922793329,5.5768,179.31,179.28,3.12]
[1753922793527,0.83,179.34,179.27,3.12]
[1753922793829,5.577,179.31,179.27,3.12]
[1753922794328,5.5771,179.3,179.27,3.12]
[1753922794726,0.83,179.37,179.24,3.12]
[1753922794923,0.83,179.35,179.24,3.12]
[1753922795229,0.83,179.35,179.27,3.12]
[1753922795828,0.83,179.37,179.27,3.12]
[1753922796026,5.5761,179.34,179.27,3.12]
[1753922796226,5.5761,179.34,179.3,3.12]
[1753922796728,5.5756,179.35,179.31,5.5768]
[1753922796931,126.88060917,179.38,179.32,3.12]
[1753922797429,5.5755,179.36,179.33,3.12]
[1753922797627,127.71060917,179.38,179.33,3.12]
[1753922797821,126.88060917,179.38,179.33,3.12]
[1753922798021,0.83,179.37,179.19,3.12]
[1753922798425,5.5762,179.33,179.29,3.12]
[1753922798625,0.83,179.36,179.29,3.12]
[1753922799023,5.5766,179.32,179.29,3.12]
[1753922799928,5.5768,179.31,179.29,3.12]
[1753922800129,0.83,179.37,179.16,3.12]
[1753922800632,0.83,179.34,179.16,3.12]
[1753922800834,0.83,179.36,179.16,3.12]
[1753922801130,5.5762,179.33,179.29,3.12]
[1753922801634,0.83,179.36,179.29,3.12]
[1753922803532,5.577,179.31,179.3,3.12]
[1753922804130,5.5778,179.28,179.24,5.5789]
[1753922804329,116.69100583,179.28,179.25,3.12]
[1753922804543,116.69100583,179.28,179.26,3.12]
[1753922805235,0.83,179.34,179.26,3.12]
[1753922805823,5.5762,179.33,179.28,5.5777]
[1753922806028,5.5762,179.33,179.29,3.12]
[1753922806237,127.71060917,179.38,179.29,3.12]
[1753922806532,127.71060917,179.38,179.31,3.12]
[1753922806933,5.5755,179.36,179.31,8.6968]
[1753922807125,5.5755,179.36,179.32,3.12]
[1753922807324,0.83,179.37,179.32,3.12]
[1753922807527,5.5758,179.35,179.33,3.12]
[1753922808128,5.5758,179.35,179.34,3.12]
[1753922813432,5.5747,179.38,179.34,3.12]
[1753922813633,0.83,179.4,179.34,3.12]
[1753922814132,5.5755,179.36,179.35,3.12]
[1753922817841,5.575,179.37,179.36,3.12]
[1753922827451,0.82,179.37,179.25,169.3342987]
[1753922827844,307.98210432,179.44,179.29,5.5772]
[1753922828049,0.82,179.34,179.3,3.21]
[1753922828452,5.5768,179.31,179.3,3.21]
[1753922828855,6.3968,179.31,179.3,3.21]
[1753922829256,5.5776,179.29,179.26,3.21]
[1753922830160,5.5776,179.29,179.26,5.5784]
[1753922830359,5.5776,179.29,179.27,3.21]
[1753922831665,5.5778,179.28,179.27,3.21]
[1753922832162,0.82,179.31,179.27,3.21]
[1753922832959,7.27825554,179.43,179.27,3.21]
[1753922832960,0.82,179.3,179.27,3.21]
[1753922833163,16.73,179.37,179.26,3.21]
[1753922833351,0.82,179.34,179.26,3.21]
[1753922834064,5.5783,179.27,179.26,3.21]
[1753922834865,0.82,179.29,179.26,3.21]
[1753922835158,0.82,179.27,179.25,172.5442987]
[1753922835462,5.5784,179.26,179.25,172.5442987]
[1753922836163,0.82,179.26,179.2,3.21]
[1753922836563,5.5792,179.24,179.2,8.7902]
[1753922836863,0.82,179.26,179.21,3.21]
[1753922837056,0.82,179.33,179.21,3.21]
[1753922837253,20.97431434,179.32,179.21,3.21]
[1753922837563,0.82,179.3,179.21,3.21]
[1753922837960,5.5796,179.22,179.21,3.21]
[1753922839167,5.5794,179.23,179.21,3.21]
[1753922839366,0.82,179.25,179.21,3.21]
[1753922839555,0.82,179.33,179.21,3.21]
[1753922839761,0.82,179.3,179.21,3.21]
[1753922840057,5.5787,179.25,179.21,3.21]
[1753922840655,0.83,179.3,179.21,3.21]
[1753922840860,15.83459586,179.36,179.16,3.21]
[1753922840861,0.83,179.28,179.16,3.21]
[1753922841269,5.5788,179.25,179.16,3.21]
[1753922842060,5.5788,179.25,179.2,5.58]
[1753922842366,5.5788,179.25,179.21,3.21]
[1753922842864,0.83,179.33,179.22,3.21]
[1753922843466,5.5783,179.27,179.24,3.21]
[1753922843667,0.83,179.29,179.24,3.21]
[1753922843969,5.5781,179.27,179.24,3.21]
[1753922844664,0.83,179.36,179.25,3.21]
[1753922845163,0.83,179.36,179.27,5.5781]
[1753922845365,0.83,179.36,179.28,3.21]
[1753922845568,0.83,179.38,179.28,3.21]
[1753922845868,0.83,179.38,179.32,3.21]
[1753922846269,0.83,179.39,179.33,3.21]
[1753922846470,0.83,179.41,179.33,3.21]
[1753922846663,5.5743,179.4,179.34,5.5759]
[1753922846864,0.83,179.41,179.35,3.21]
[1753922847361,5.575,179.37,179.35,3.21]
[1753922847966,5.5753,179.36,179.35,3.21]
[1753922850369,5.5757,179.35,179.34,3.06]
[1753922857078,0.83,179.4,179.34,3.06]
[1753922857269,0.83,179.43,179.34,3.06]
[1753922857669,5.5751,179.37,179.34,3.06]
[1753922860583,5.5755,179.36,179.34,3.06]
[1753922860977,5.5746,179.39,179.35,3.06]
[1753922861887,0.83,179.42,179.35,3.06]
[1753922862081,0.83,179.43,179.35,3.06]
[1753922862488,5.5741,179.4,179.36,5.575]
[1753922862787,291.25210432,179.44,179.22,12.57744581]
[1753922862788,291.25210432,179.44,179.37,3.06]
[1753922863085,0.83,179.43,179.37,3.06]
[1753922863288,0.83,179.41,179.23,3.06]
[1753922863678,5.5752,179.37,179.32,5.5762]
[1753922863882,5.5752,179.37,179.23,3.06]
[1753922864284,0.83,179.4,179.23,3.06]
[1753922864483,0.83,179.43,179.23,3.06]
[1753922865387,5.5738,179.41,179.37,5.5749]
[1753922865588,5.5738,179.41,179.38,3.06]
[1753922866089,0.83,179.47,179.38,3.06]
[1753922868079,5.574,179.41,179.38,3.06]
[1753922868284,0.83,179.43,179.38,3.06]
[1753922868886,5.5743,179.39,179.34,5.5757]
[1753922869284,5.5743,179.39,179.24,26.24181516]
[1753922869487,5.5743,179.39,179.25,3.06]
[1753922869693,5.5741,179.4,179.36,3.06]
[1753922870994,5.5741,179.4,179.37,3.06]
[1753922871793,5.5738,179.41,179.38,3.06]
[1753922873389,0.83,179.43,179.38,3.06]
[1753922873594,0.83,179.42,179.38,3.06]
[1753922874095,5.574,179.41,179.38,3.06]
[1753922875184,5.574,179.41,179.39,3.06]
[1753922875690,5.5735,179.42,179.39,3.06]
[1753922876487,5.5737,179.41,179.38,3.06]
[1753922879495,0.83,179.5,179.4,3.27]
[1753922880897,5.5731,179.43,179.4,3.27]
[1753922881701,5.5734,179.42,179.4,3.27]
[1753922882201,5.5732,179.43,179.4,3.27]
[1753922883101,5.5732,179.43,179.39,5.5743]
[1753922883400,5.5734,179.42,179.41,3.27]
[1753922883595,0.83,179.42,179.24,27.66126097]
[1753922883801,0.83,179.42,179.25,3.27]
[1753922884301,5.5738,179.41,179.25,3.27]
[1753922886503,5.5738,179.41,179.37,5.5747]
[1753922886699,139.63534271,179.52,179.38,3.27]
[1753922886700,0.83,179.48,179.38,3.27]
[1753922887101,0.83,179.48,179.4,5.5739]
[1753922887399,0.83,179.48,179.41,3.27]
[1753922887803,5.5727,179.45,179.28,12.57744581]
[1753922888005,0.83,179.44,179.43,3.27]
[1753922888401,145.41349586,179.54,179.41,3.27]
[1753922888605,5.51349586,179.52,179.41,3.27]
[1753922888901,0.83,179.5,179.41,3.27]
[1753922889101,4.21372728,179.49,179.41,3.27]
[1753922889303,4.21677385,179.48,179.41,3.27]
[1753922889503,5.5734,179.43,179.27,12.57744581]
[1753922889708,0.83,179.44,179.43,3.27]
[1753922890013,5.5726,179.45,179.43,3.27]
[1753922890603,5.5728,179.44,179.41,5.5735]
[1753922890809,5.5728,179.44,179.28,12.57744581]
[1753922891011,5.5728,179.44,179.39,5.5741]
[1753922891202,6.4028,179.44,179.4,3.27]
[1753922891613,6.4028,179.44,179.4,8.844]
[1753922891813,0.83,179.43,179.42,3.27]
[1753922892615,0.83,179.42,179.41,3.27]
[1753922893215,6.4034,179.42,179.41,3.27]
[1753922893410,0.83,179.42,179.41,3.27]
[1753922893914,5.5732,179.43,179.41,3.27]
[1753922894110,5.5732,179.43,179.39,5.5743]
[1753922894308,6.4032,179.43,179.42,3.27]
[1753922894512,5.5729,179.44,179.42,3.27]
[1753922894704,0.83,179.45,179.42,3.27]
[1753922894911,16.73,179.53,179.42,3.27]
[1753922895109,5.5727,179.45,179.42,3.27]
[1753922895310,21.41349586,179.53,179.42,3.27]
[1753922895311,16.73,179.53,179.42,3.27]
[1753922895505,0.83,179.45,179.42,3.27]
[1753922896109,5.573,179.44,179.43,3.27]
[1753922896305,0.83,179.45,179.39,3.27]
[1753922896910,5.5733,179.43,179.39,8.8444]
[1753922897110,6.4033,179.43,179.4,3.27]
[1753922897311,0.83,179.43,179.41,3.27]
[1753922897609,5.51349586,179.52,179.39,3.27]
[1753922897816,0.83,179.5,179.39,3.27]
[1753922898010,0.83,179.48,179.39,3.27]
[1753922898217,5.574,179.41,179.4,3.27]
[1753922899218,5.5742,179.4,179.38,3.27]
[1753922899417,5.5742,179.4,179.39,3.27]
[1753922899718,5.5738,179.41,179.39,3.27]
[1753922900318,5.5735,179.42,179.39,3.27]
[1753922900616,0.83,179.45,179.39,3.27]
[1753922900914,5.5734,179.43,179.39,3.27]
[1753922901110,0.83,179.51,179.39,3.27]
[1753922901306,21.41349586,179.52,179.39,3.27]
[1753922901307,0.83,179.49,179.39,3.27]
[1753922901511,5.5728,179.44,179.39,3.27]
[1753922901811,0.83,179.44,179.39,3.27]
[1753922902012,0.83,179.46,179.39,3.27]
[1753922902610,5.573,179.44,179.41,3.27]
[1753922902808,0.83,179.46,179.41,3.27]
[1753922903519,0.83,179.46,179.42,3.27]
[1753922903715,0.83,179.46,179.4,3.27]
[1753922903912,0.83,179.5,179.41,3.27]
[1753922904117,0.83,179.48,179.41,3.27]
[1753922904418,0.83,179.48,179.25,11.1569]
[1753922904419,5.5738,179.41,179.28,12.57744581]
[1753922904718,5.5738,179.41,179.37,5.5748]
[1753922904917,0.83,179.46,179.29,12.57744581]
[1753922905114,0.83,179.46,179.3,3.27]
[1753922905819,4.68349586,179.52,179.31,3.27]
[1753922905820,0.83,179.51,179.31,3.27]
[1753922906023,0.83,179.49,179.31,3.27]
[1753922906213,5.5728,179.44,179.4,5.5738]
[1753922906409,0.83,179.47,179.41,3.27]
[1753922906614,0.83,179.49,179.41,3.27]
[1753922906814,5.5722,179.46,179.42,5.5732]
[1753922907016,5.5722,179.46,179.43,3.27]
[1753922907416,0.83,179.49,179.43,3.27]
[1753922907616,5.5721,179.47,179.43,3.27]
[1753922907816,6.4021,179.47,179.43,3.27]
[1753922908019,5.5721,179.47,179.43,3.27]
[1753922908220,5.5721,179.47,179.44,3.19]
[1753922908821,5.5723,179.46,179.44,3.19]
[1753922911326,5.5723,179.46,179.45,3.19]
[1753922911726,6.4023,179.46,179.45,3.19]
[1753922912021,4.68349586,179.53,179.43,3.19]
[1753922912222,0.83,179.51,179.43,3.19]
[1753922912518,0.83,179.49,179.43,3.19]
[1753922912720,5.5725,179.46,179.43,3.19]
[1753922913423,5.5726,179.45,179.43,3.19]
[1753922914324,5.5726,179.45,179.44,3.19]
[1753922915426,0.83,179.45,179.4,3.19]
[1753922915625,0.83,179.5,179.31,3.19]
[1753922915831,0.83,179.48,179.31,3.19]
[1753922916017,5.5738,179.42,179.37,5.5748]
[1753922916224,0.83,179.5,179.38,3.19]
[1753922916531,0.83,179.48,179.38,3.19]
[1753922916731,5.5737,179.42,179.38,3.19]
[1753922917028,0.83,179.42,179.38,3.19]
[1753922917220,5.5741,179.41,179.38,3.19]
[1753922917527,0.83,179.41,179.38,3.19]
[1753922917730,5.5741,179.4,179.38,3.19]
[1753922918028,0.83,179.41,179.38,3.19]
[1753922918524,4.68349586,179.49,179.36,3.19]
[1753922918728,4.2201417,179.48,179.36,3.19]
[1753922918922,117.66677192,179.53,179.36,3.19]
[1753922919123,0.83,179.52,179.36,15.76744581]
[1753922919421,5.5698,179.54,179.37,15.76744581]
[1753922919628,0.83,179.57,179.26,403.31953017]
[1753922919629,0.83,179.57,179.38,187.78238713]
[1753922919827,0.83,179.57,179.4,3.19]
[1753922920019,0.83,179.57,179.39,12.57744581]
[1753922920020,5.5689,179.57,179.5,5.5707]
[1753922920218,3.75875312,179.6,179.41,3.19]
[1753922920527,9.32695312,179.6,179.43,3.19]
[1753922920727,3.75875312,179.6,179.54,3.19]
[1753922921033,4.58875312,179.6,179.54,3.19]
[1753922921232,5.5685,179.59,179.54,3.19]
[1753922921721,10.15665312,179.6,179.54,8.7597]
[1753922921926,4.58875312,179.6,179.54,8.7597]
[1753922922128,4.58875312,179.6,179.55,3.19]
[1753922922326,3.75875312,179.6,179.55,3.19]
[1753922922522,6.3985,179.59,179.41,3.19]
[1753922922725,0.83,179.59,179.41,3.19]
[1753922922919,5.5692,179.56,179.41,3.19]
[1753922923127,0.83,179.58,179.41,3.19]
[1753922923927,5.5696,179.55,179.49,5.5711]
[1753922924231,5.5696,179.55,179.5,3.19]
[1753922925332,5.5696,179.55,179.51,3.19]
[1753922925932,5.5692,179.56,179.52,3.19]
[1753922926731,6.3992,179.56,179.52,3.19]
[1753922926921,5.5696,179.55,179.52,3.19]
[1753922927126,5.5696,179.55,179.53,3.19]
[1753922927330,0.83,179.59,179.53,3.19]
[1753922927732,0.83,179.59,179.49,3.19]
[1753922928432,5.57,179.54,179.5,3.19]
[1753922929439,0.83,179.57,179.5,5.5709]
[1753922929642,0.83,179.57,179.51,3.19]
[1753922930835,5.57,179.54,179.51,3.19]
[1753922931033,0.83,179.56,179.49,3.19]
[1753922931343,0.83,179.59,179.49,3.19]
[1753922931638,0.83,179.59,179.52,5.5704]
[1753922931837,0.83,179.59,179.53,3.19]
[1753922932832,0.83,179.59,179.55,3.19]
[1753922933035,3.75875312,179.6,179.57,3.19]
[1753922933237,5.5686,179.58,179.48,35.84377848]
[1753922933438,5.5686,179.58,179.57,3.19]
[1753922934136,0.83,179.58,179.39,5.579]
[1753922934438,0.83,179.58,179.42,3.19]
[1753922934630,0.83,179.58,179.43,3.19]
[1753922934826,5.5689,179.57,179.43,3.19]
[1753922935031,4.58875312,179.6,179.43,3.19]
[1753922935936,5.5688,179.58,179.53,5.5699]
[1753922936136,0.83,179.56,179.54,3.19]
[1753922936339,113.99540287,179.58,179.54,3.19]
[1753922936637,5.5689,179.57,179.54,3.19]
[1753922937435,5.5692,179.56,179.55,3.19]
[1753922940643,5.5696,179.55,179.48,3.15]
[1753922940934,113.98540287,179.58,179.48,3.15]
[1753922941136,5.5692,179.56,179.48,3.15]
[1753922941733,5.5692,179.56,179.51,5.5704]
[1753922941940,6.3892,179.56,179.52,3.15]
[1753922942640,5.5692,179.56,179.52,3.15]
[1753922942937,0.82,179.58,179.53,3.15]
[1753922943534,3.75875312,179.6,179.53,3.15]
[1753922943739,4.57875312,179.6,179.53,3.15]
[1753922944042,10.14675312,179.6,179.56,5.5691]
[1753922944339,10.14675312,179.6,179.57,3.15]
[1753922944340,4.57875312,179.6,179.57,3.15]
[1753922944539,5.5684,179.59,179.54,5.5695]
[1753922944741,6.3884,179.59,179.55,3.15]
[1753922945143,5.5686,179.58,179.55,3.15]